bitfinex-derivatives/quotes_ETHF0:USTF0_20230106
["timestamp","ask_amount","ask_price","bid_price","bid_amount"]
[1672981016386,3.59038302,1251.2,1251.0,4.29677787]
[1672981016584,6.79818302,1251.2,1251.0,4.29677787]
[1672981018055,9.29818302,1251.2,1251.0,2.5]
[1672981019540,6.09038302,1251.2,1251.0,2.5]
[1672981019746,6.79818302,1251.2,1251.0,2.5]
[1672981019957,9.29818302,1251.2,1251.0,2.5]
[1672981020485,6.09038302,1251.2,1251.0,2.5]
[1672981020693,6.79818302,1251.2,1251.0,2.5]
[1672981020904,9.29818302,1251.2,1251.0,2.5]
[1672981021641,9.29818302,1251.2,1250.9,4.19522393]
[1672981021848,9.29818302,1251.2,1251.0,2.5]
[1672981022678,6.79818302,1251.2,1251.0,2.5]
[1672981023798,9.29818302,1251.2,1251.0,2.5]
[1672981024895,13.48696321,1251.2,1251.0,2.5]
[1672981025313,9.29818302,1251.2,1251.0,2.5]
[1672981025524,13.48696321,1251.2,1251.0,2.5]
[1672981025837,10.98696321,1251.2,1251.0,2.5]
[1672981026573,6.79818302,1251.2,1251.0,2.5]
[1672981027092,10.98696321,1251.2,1251.0,2.5]
[1672981027342,6.79818302,1251.2,1251.0,2.5]
[1672981027511,10.98696321,1251.2,1251.0,2.5]
[1672981028153,2.5,1251.1,1251.0,2.5]
[1672981028349,2.5,1251.1,1251.0,4.29677787]
[1672981028986,7.77916321,1251.2,1251.0,4.29677787]
[1672981029203,6.79818302,1251.2,1251.0,4.29677787]
[1672981029411,9.29818302,1251.2,1251.0,4.29677787]
[1672981030788,13.48696321,1251.2,1251.0,4.29677787]
[1672981031104,10.27916321,1251.2,1251.0,4.29677787]
[1672981031422,13.48696321,1251.2,1251.0,4.29677787]
[1672981032365,3.59038302,1251.1,1251.0,4.29677787]
[1672981032568,6.09038302,1251.1,1251.0,4.29677787]
[1672981032885,10.27916321,1251.2,1251.0,4.29677787]
[1672981033112,13.48696321,1251.2,1251.0,4.29677787]
[1672981033520,13.48696321,1251.2,1251.0,2.5]
[1672981033724,6.09038302,1251.1,1251.0,2.5]
[1672981033933,6.09038302,1251.1,1250.9,4.19522393]
[1672981034343,6.09038302,1251.1,1250.9,1.79677787]
[1672981034659,6.79818302,1251.1,1251.0,2.5]
[1672981037063,3.59038302,1251.1,1251.0,2.5]
[1672981039900,6.09038302,1251.1,1250.9,1.79677787]
[1672981040950,9.29818302,1251.1,1250.9,1.79677787]
[1672981042008,6.09038302,1251.1,1250.9,1.79677787]
[1672981042217,9.29818302,1251.1,1250.9,1.79677787]
[1672981042527,6.09038302,1251.1,1250.9,1.79677787]
[1672981043158,9.29818302,1251.1,1250.9,1.79677787]
[1672981043576,3.59038302,1251.2,1251.0,4.29677787]
[1672981043784,3.59038302,1251.2,1251.1,2.5]
[1672981045894,10.98696321,1251.3,1251.1,2.5]
[1672981047681,7.77916321,1251.3,1251.1,2.5]
[1672981047894,3.59038302,1251.3,1251.1,2.5]
[1672981048097,7.77916321,1251.3,1251.1,2.5]
[1672981048307,3.59038302,1251.3,1251.1,4.29677787]
[1672981048826,6.09038302,1251.3,1251.1,4.29677787]
[1672981049041,3.59038302,1251.3,1251.1,4.29677787]
[1672981049362,17.17238302,1251.4,1251.3,2.5]
[1672981049675,3.59038302,1251.4,1251.3,2.5]
[1672981054713,3.59038302,1251.5,1251.3,2.5]
[1672981057030,6.09038302,1251.5,1251.3,2.5]
[1672981057450,6.09038302,1251.5,1251.2,11.2038]
[1672981057663,6.09038302,1251.5,1251.3,2.5]
[1672981058509,2.5,1251.4,1251.3,2.49730908]
[1672981059237,6.09038302,1251.5,1251.3,2.49730908]
[1672981060181,10.27916321,1251.5,1251.3,2.49730908]
[1672981060393,6.09038302,1251.5,1251.3,2.49730908]
[1672981060602,9.29818302,1251.5,1251.3,2.49730908]
[1672981063554,6.09038302,1251.5,1251.3,2.49730908]
[1672981063765,9.29818302,1251.5,1251.3,2.49730908]
[1672981065447,6.79818302,1251.5,1251.3,2.49730908]
[1672981065757,3.59038302,1251.5,1251.3,2.49730908]
[1672981066387,6.09038302,1251.5,1251.3,2.49730908]
[1672981066808,3.59038302,1251.5,1251.3,2.49730908]
[1672981067334,6.09038302,1251.5,1251.3,2.49730908]
[1672981069541,3.59038302,1251.5,1251.3,2.49730908]
[1672981069853,6.09038302,1251.5,1251.3,2.49730908]
[1672981070273,3.59038302,1251.5,1251.3,2.49730908]
[1672981070590,6.09038302,1251.5,1251.3,2.49730908]
[1672981071113,3.59038302,1251.5,1251.3,2.49730908]
[1672981071326,6.09038302,1251.5,1251.3,2.49730908]
[1672981071640,3.59038302,1251.5,1251.3,2.49730908]
[1672981073528,6.09038302,1251.5,1251.3,2.49730908]
[1672981074269,3.59038302,1251.5,1251.3,2.49730908]
[1672981075942,3.59038302,1251.5,1251.2,3.2078]
[1672981076154,9.29818302,1251.4,1251.1,10.496]
[1672981076366,2.5,1251.3,1251.1,10.496]
[1672981076579,2.5,1251.3,1251.1,12.29277787]
[1672981077630,5.7078,1251.4,1251.1,12.29277787]
[1672981078152,5.7078,1251.4,1251.1,10.496]
[1672981078356,9.29818302,1251.4,1251.1,10.496]
[1672981078566,9.29818302,1251.4,1251.1,12.29277787]
[1672981080045,9.29818302,1251.4,1251.0,15.50057787]
[1672981080359,6.09038302,1251.3,1251.0,7.50457787]
[1672981080772,5.7078,1251.2,1251.0,2.5]
[1672981081189,9.29818302,1251.2,1251.0,2.5]
[1672981081399,5.7078,1251.2,1251.0,2.5]
[1672981081615,9.29818302,1251.2,1250.9,12.29277787]
[1672981081829,9.29818302,1251.2,1250.9,1.79677787]
[1672981082029,9.29818302,1251.2,1250.8,7.40302393]
[1672981082245,13.48696321,1251.2,1250.8,7.50457787]
[1672981082668,13.48696321,1251.2,1250.9,2.5]
[1672981083614,21.48296321,1251.2,1250.8,7.50457787]
[1672981083825,3.2078,1251.0,1250.8,7.50457787]
[1672981084144,2.5,1250.9,1250.8,7.50457787]
[1672981084661,2.5,1251.0,1250.8,4.29677787]
[1672981090131,2.5,1251.0,1250.8,2.5]
[1672981094124,14.08638302,1251.2,1250.8,2.5]
[1672981094349,3.2078,1251.1,1250.8,2.5]
[1672981094537,2.5,1251.0,1250.8,2.5]
[1672981099063,3.2078,1251.1,1250.8,2.5]
[1672981099275,2.5,1251.0,1250.8,2.5]
[1672981099691,3.2078,1251.1,1250.9,3.2078]
[1672981099905,3.2078,1251.1,1251.0,2.5]
[1672981100530,2.5,1251.2,1251.0,2.5]
[1672981104530,5.7078,1251.2,1251.0,2.5]
[1672981104846,2.5,1251.2,1251.0,2.5]
[1672981105057,5.7078,1251.2,1251.0,2.5]
[1672981105269,5.7078,1251.2,1250.8,7.50457787]
[1672981105897,2.5,1251.2,1250.8,4.29677787]
[1672981106107,5.7078,1251.2,1250.8,7.50457787]
[1672981107572,2.5,1251.2,1250.8,4.29677787]
[1672981107788,5.7078,1251.2,1250.8,7.50457787]
[1672981107996,2.5,1251.2,1250.8,4.29677787]
[1672981108201,5.7078,1251.2,1250.8,7.50457787]
[1672981108730,5.7078,1251.2,1250.9,1.79677787]
[1672981108939,5.7078,1251.2,1251.0,2.5]
[1672981109463,2.5,1251.2,1251.0,2.5]
[1672981112300,6.09038302,1251.2,1251.0,2.5]
[1672981114517,6.09038302,1251.2,1251.0,3.69609727]
[1672981116190,6.09038302,1251.2,1251.0,2.5]
[1672981116403,6.09038302,1251.2,1251.0,3.69609727]
[1672981116615,9.29818302,1251.2,1251.0,3.69609727]
[1672981117348,9.29818302,1251.2,1251.0,2.5]
[1672981117563,9.29818302,1251.2,1251.0,3.69609727]
[1672981117974,6.09038302,1251.2,1251.0,3.69609727]
[1672981118186,9.29818302,1251.2,1251.0,3.69609727]
[1672981118399,13.48696321,1251.2,1251.0,3.69609727]
[1672981118720,3.59038302,1251.1,1251.0,3.69609727]
[1672981118929,3.59038302,1251.1,1250.9,2.99287514]
[1672981119248,2.5,1251.0,1250.9,2.99287514]
[1672981120296,3.59038302,1251.1,1250.9,2.99287514]
[1672981124817,7.77916321,1251.1,1250.9,2.99287514]
[1672981126397,3.59038302,1251.1,1250.9,2.99287514]
[1672981126712,6.79818302,1251.1,1250.9,2.99287514]
[1672981127027,3.59038302,1251.1,1250.9,2.99287514]
[1672981127551,6.79818302,1251.1,1250.9,2.99287514]
[1672981127764,3.59038302,1251.1,1250.9,2.99287514]
[1672981128187,6.79818302,1251.1,1250.9,2.99287514]
[1672981129342,3.59038302,1251.0,1250.9,1.19609727]
[1672981129553,2.5,1251.0,1250.9,2.98807808]
[1672981130814,10.98696321,1251.1,1250.9,2.98807808]
[1672981132181,10.98696321,1251.1,1250.9,1.19130021]
[1672981132496,7.77916321,1251.1,1250.9,1.19130021]
[1672981132710,10.98696321,1251.1,1250.9,1.19130021]
[1672981132916,7.77916321,1251.1,1250.9,1.19130021]
[1672981133127,10.98696321,1251.1,1250.9,1.19130021]
[1672981133864,3.59038302,1251.0,1250.9,1.19130021]
[1672981134177,2.5,1251.0,1250.9,1.19130021]
[1672981137334,10.98696321,1251.1,1250.9,1.19130021]
[1672981138485,2.5,1251.0,1250.9,1.19130021]
[1672981139222,5.7078,1251.0,1250.9,1.19130021]
[1672981141217,3.2078,1251.0,1250.9,1.19130021]
[1672981141430,5.7078,1251.0,1250.9,1.19130021]
[1672981142162,3.2078,1251.0,1250.9,1.19130021]
[1672981142373,5.7078,1251.0,1250.9,1.19130021]
[1672981143637,2.5,1251.0,1250.9,1.19130021]
[1672981144163,5.7078,1251.0,1250.9,1.19130021]
[1672981147414,9.29818302,1251.0,1250.9,1.19130021]
[1672981151517,9.29818302,1251.0,1250.8,4.29677787]
[1672981154347,9.29818302,1251.0,1250.8,4.19522393]
[1672981154560,9.29818302,1251.0,1250.8,1.79677787]
[1672981154878,9.29818302,1251.0,1250.8,4.19522393]
[1672981155083,3.59038302,1251.0,1250.8,4.19522393]
[1672981155930,6.09038302,1251.0,1250.8,4.19522393]
[1672981157403,3.59038302,1251.0,1250.8,4.19522393]
[1672981158348,3.59038302,1251.0,1250.9,1.79677787]
[1672981158558,3.59038302,1251.0,1250.9,4.29677787]
[1672981177469,10.98696321,1251.1,1250.9,4.29677787]
[1672981177883,3.59038302,1251.0,1250.9,4.29677787]
[1672981178098,6.09038302,1251.0,1250.9,4.29677787]
[1672981179052,3.59038302,1251.0,1250.9,4.29677787]
[1672981179888,10.98696321,1251.1,1250.9,4.29677787]
[1672981180521,7.77916321,1251.1,1250.9,4.29677787]
[1672981180724,10.98696321,1251.1,1250.9,4.29677787]
[1672981181044,3.59038302,1251.0,1250.9,4.29677787]
[1672981181358,6.09038302,1251.0,1250.9,1.79677787]
[1672981181771,6.09038302,1251.0,1250.8,6.69522393]
[1672981182936,9.29818302,1251.0,1250.8,6.69522393]
[1672981184626,9.29818302,1251.0,1250.8,4.29677787]
[1672981185664,9.29818302,1251.0,1250.8,6.69522393]
[1672981188511,6.79818302,1251.0,1250.8,6.69522393]
[1672981189353,6.79818302,1251.0,1250.8,4.29677787]
[1672981190510,3.59038302,1251.0,1250.8,4.29677787]
[1672981190819,6.79818302,1251.0,1250.8,4.29677787]
[1672981191035,3.59038302,1251.0,1250.8,4.29677787]
[1672981191241,6.79818302,1251.0,1250.8,4.29677787]
[1672981191451,3.59038302,1251.0,1250.8,6.69522393]
[1672981191664,6.79818302,1251.0,1250.8,6.69522393]
[1672981192716,3.2078,1251.0,1250.9,1.79677787]
[1672981193025,3.59038302,1251.2,1250.9,12.41171284]
[1672981193236,3.59038302,1251.2,1251.1,1.79838335]
[1672981193441,3.59038302,1251.2,1251.1,4.29838335]
[1672981194492,7.77916321,1251.3,1251.1,2.5]
[1672981194916,10.98696321,1251.3,1251.1,2.5]
[1672981195331,6.79818302,1251.3,1251.1,2.5]
[1672981198063,3.59038302,1251.3,1251.1,4.2917205]
[1672981198278,17.17238302,1251.4,1251.2,3.2078]
[1672981198487,3.59038302,1251.4,1251.3,2.5]
[1672981198703,6.09038302,1251.4,1251.3,2.5]
[1672981199323,3.59038302,1251.4,1251.3,2.5]
[1672981199539,6.09038302,1251.4,1251.3,2.5]
[1672981199847,3.59038302,1251.4,1251.3,2.5]
[1672981200700,6.09038302,1251.4,1251.3,2.5]
[1672981201430,3.59038302,1251.4,1251.3,2.5]
[1672981202792,3.59038302,1251.4,1251.1,2.49333715]
[1672981203006,7.77916321,1251.4,1251.1,2.49333715]
[1672981203215,2.5,1251.3,1251.1,2.49333715]
[1672981203639,6.09038302,1251.3,1251.1,2.49333715]
[1672981203840,7.77916321,1251.4,1251.1,2.49333715]
[1672981204052,2.5,1251.3,1251.1,2.49333715]
[1672981205002,2.5,1251.3,1251.0,5.00618335]
[1672981205317,5.7078,1251.3,1251.0,2.5]
[1672981205527,13.48696321,1251.3,1251.0,2.5]
[1672981205733,21.48296321,1251.3,1250.9,1.79838335]
[1672981205947,21.48296321,1251.3,1250.9,2.5]
[1672981206160,11.2038,1251.0,1250.9,2.5]
[1672981206362,11.2038,1251.0,1250.5,2.39784447]
[1672981206363,14.79418302,1251.0,1250.5,1.79838335]
[1672981206573,3.2078,1250.8,1250.6,2.5]
[1672981206792,3.2078,1250.8,1250.5,2.5]
[1672981207105,3.2078,1250.8,1250.4,1.79838335]
[1672981207106,10.496,1250.7,1250.4,1.79838335]
[1672981207313,2.5,1250.6,1250.4,4.29838335]
[1672981207836,5.7078,1250.6,1250.4,4.29838335]
[1672981208156,5.7078,1250.6,1250.4,2.5]
[1672981210474,5.7078,1250.6,1250.3,4.29838335]
[1672981210675,13.7038,1250.6,1250.3,1.79838335]
[1672981210887,13.7038,1250.6,1250.2,5.00618335]
[1672981211092,13.7038,1250.6,1250.3,2.5]
[1672981211518,13.7038,1250.6,1250.2,5.00618335]
[1672981211724,3.2078,1250.4,1250.2,2.5]
[1672981212045,3.2078,1250.4,1250.1,1.79838335]
[1672981212258,2.5,1250.3,1250.2,2.5]
[1672981214571,2.5,1250.3,1250.1,2.5]
[1672981216669,2.5,1250.3,1250.0,2.5]
[1672981217714,10.496,1250.3,1250.0,2.5]
[1672981218562,10.496,1250.3,1249.9,2.5]
[1672981219192,10.496,1250.3,1250.0,3.2078]
[1672981219403,10.496,1250.3,1250.1,2.5]
[1672981220670,10.496,1250.3,1250.0,3.2078]
[1672981221826,3.2078,1250.2,1249.9,2.5]
[1672981222034,2.5,1250.1,1249.9,2.5]
[1672981225082,11.2038,1250.2,1249.9,2.5]
[1672981225301,2.5,1250.1,1249.9,2.5]
[1672981226135,2.49247047,1250.1,1249.9,2.5]
[1672981227814,2.49247047,1250.1,1249.8,5.7078]
[1672981229599,2.49247047,1250.1,1249.8,2.5]
[1672981229814,2.49247047,1250.1,1249.8,5.7078]
[1672981230440,10.48847047,1250.1,1249.7,2.5]
[1672981231810,10.48847047,1250.1,1249.6,4.3892]
[1672981232012,2.5,1249.9,1249.6,2.5]
[1672981232225,3.2078,1249.8,1249.6,2.5]
[1672981232649,2.5,1249.7,1249.6,2.5]
[1672981234122,11.2038,1249.8,1249.6,2.5]
[1672981234748,7.996,1249.8,1249.6,2.5]
[1672981235803,10.496,1249.9,1249.6,2.5]
[1672981236018,10.496,1249.9,1249.7,3.2078]
[1672981236333,10.496,1249.9,1249.8,2.5]
[1672981237588,2.5,1249.9,1249.8,2.5]
[1672981237803,11.2038,1250.0,1249.8,2.5]
[1672981240114,2.5,1249.9,1249.7,3.2078]
[1672981241277,2.5,1249.9,1249.6,7.50618335]
[1672981242327,2.5,1249.9,1249.7,1.79838335]
[1672981242641,2.5,1249.9,1249.8,2.5]
[1672981244327,2.5,1249.9,1249.8,4.29838335]
[1672981244528,7.996,1250.0,1249.8,4.29838335]
[1672981245049,2.5,1249.9,1249.8,4.29838335]
[1672981245794,2.5,1249.9,1249.8,1.79838335]
[1672981246738,2.5,1249.9,1249.8,4.29838335]
[1672981248007,2.5,1249.9,1249.8,1.79838335]
[1672981250211,5.7078,1249.9,1249.8,1.79838335]
[1672981250836,2.5,1249.9,1249.8,1.79838335]
[1672981253261,2.5,1249.9,1249.8,4.19622782]
[1672981253788,2.5,1249.9,1249.8,1.79838335]
[1672981253991,2.5,1249.9,1249.8,4.19622782]
[1672981254522,11.2038,1250.0,1249.8,4.19622782]
[1672981254837,2.5,1249.9,1249.8,2.39784447]
[1672981255153,2.5,1249.9,1249.8,4.19263764]
[1672981255466,2.5,1249.9,1249.8,2.39784447]
[1672981255679,11.2038,1250.0,1249.8,6.31596135]
[1672981255882,11.2038,1250.0,1249.9,1.79469315]
[1672981256092,11.2038,1250.0,1249.9,4.29469315]
[1672981256828,11.2038,1250.0,1249.9,5.49164064]
[1672981257038,11.2038,1250.0,1249.9,1.79469315]
[1672981257350,11.2038,1250.0,1249.9,2.99165784]
[1672981258304,11.2038,1250.0,1249.9,1.79469315]
[1672981258511,11.2038,1250.0,1249.9,2.99201593]
[1672981258725,7.996,1250.0,1249.9,2.99201593]
[1672981260305,7.996,1250.0,1249.9,1.19732278]
[1672981262090,11.2038,1250.0,1249.9,1.19732278]
[1672981263879,11.2038,1250.0,1249.8,2.99201593]
[1672981264090,2.5,1249.9,1249.8,2.99201593]
[1672981264511,2.5,1249.9,1249.8,1.19732278]
[1672981264720,2.5,1249.9,1249.8,2.99201593]
[1672981267775,2.5,1249.9,1249.8,1.79469315]
[1672981268083,10.496,1249.9,1249.8,1.79469315]
[1672981268302,10.496,1249.9,1249.8,1.19896492]
[1672981269983,13.7038,1249.9,1249.8,1.19896492]
[1672981273561,13.7038,1249.9,1249.8,2.99365807]
[1672981273874,10.496,1249.9,1249.8,1.79469315]
[1672981275661,10.496,1249.9,1249.8,2.99350176]
[1672981279654,10.496,1249.9,1249.8,1.19880861]
[1672981284060,10.496,1249.9,1249.7,1.19880861]
[1672981284270,13.7038,1249.8,1249.7,1.19880861]
[1672981285744,13.7038,1249.8,1249.6,1.19880861]
[1672981285955,21.48296321,1249.8,1249.5,2.99350176]
[1672981286164,11.2038,1249.6,1249.5,2.99350176]
[1672981286472,11.2038,1249.6,1249.5,1.19880861]
[1672981292576,7.996,1249.7,1249.5,2.9918188]
[1672981292897,7.996,1249.7,1249.6,2.5]
[1672981294368,7.996,1249.7,1249.5,2.9918188]
[1672981295526,11.2038,1249.7,1249.5,2.9918188]
[1672981296258,10.496,1249.6,1249.5,2.9918188]
[1672981296787,10.496,1249.6,1249.5,1.19712565]
[1672981296998,10.496,1249.6,1249.5,2.9918188]
[1672981297732,10.496,1249.6,1249.5,1.19712565]
[1672981297938,10.496,1249.6,1249.5,2.9918188]
[1672981298147,10.496,1249.6,1249.5,1.19712565]
[1672981298356,10.496,1249.6,1249.5,2.9918188]
[1672981298887,10.496,1249.6,1249.5,1.19712565]
[1672981299096,10.496,1249.6,1249.5,2.9918188]
[1672981299730,7.996,1249.6,1249.5,2.9918188]
[1672981300992,11.2038,1249.7,1249.5,2.9918188]
[1672981301197,10.496,1249.6,1249.5,2.9918188]
[1672981301412,10.496,1249.6,1249.4,1.19712565]
[1672981301618,5.7078,1249.5,1249.4,1.19712565]
[1672981302148,2.5,1249.4,1249.3,5.4918188]
[1672981302353,2.5,1249.4,1249.3,1.79469315]
[1672981302569,2.5,1249.4,1249.3,1.19766445]
[1672981303824,7.996,1249.5,1249.3,1.19766445]
[1672981304041,7.996,1249.5,1249.3,5.4923576]
[1672981304243,7.996,1249.5,1249.4,1.19766445]
[1672981304676,7.996,1249.5,1249.3,8.7001576]
[1672981305091,2.5,1249.4,1249.3,6.2001576]
[1672981305302,2.49710798,1249.4,1249.3,6.2001576]
[1672981305613,2.49710798,1249.4,1249.3,2.9923576]
[1672981307410,7.996,1249.5,1249.3,2.9923576]
[1672981307726,2.5,1249.4,1249.3,1.19766445]
[1672981308140,13.7038,1249.4,1249.3,1.19766445]
[1672981308460,13.7038,1249.4,1249.2,1.19766445]
[1672981308871,13.7038,1249.4,1249.1,5.4923576]
[1672981309512,13.7038,1249.4,1249.2,3.69766445]
[1672981309930,10.496,1249.4,1249.3,3.69766445]
[1672981310140,7.996,1249.5,1249.3,3.69766445]
[1672981310342,2.5,1249.4,1249.3,5.4923576]
[1672981310558,13.7038,1249.6,1249.4,3.2078]
[1672981310769,13.7038,1249.6,1249.5,2.5]
[1672981310975,7.996,1249.6,1249.5,2.5]
[1672981311190,20.38018302,1250.0,1249.5,5.49111182]
[1672981311499,20.38018302,1250.0,1249.7,0.5]
[1672981311500,7.996,1249.9,1249.7,0.5]
[1672981311708,10.496,1249.8,1249.7,0.5]
[1672981313611,10.496,1249.8,1249.5,8.69891182]
[1672981315505,10.496,1249.8,1249.6,1.19641867]
[1672981317390,2.5,1249.8,1249.7,2.5]
[1672981317812,2.5,1249.8,1249.7,5.7078]
[1672981320345,2.5,1249.8,1249.7,6.90421867]
[1672981320548,7.996,1249.9,1249.7,6.90421867]
[1672981321708,7.996,1249.9,1249.7,3.69641867]
[1672981321919,7.996,1249.9,1249.7,2.5]
[1672981323181,7.996,1249.9,1249.7,3.69641867]
[1672981324226,7.996,1249.9,1249.7,2.5]
[1672981325073,7.996,1249.9,1249.7,3.69641867]
[1672981326016,7.996,1249.9,1249.7,6.90421867]
[1672981327589,7.996,1249.9,1249.7,3.69641867]
[1672981327807,7.996,1249.9,1249.7,2.5]
[1672981331907,7.996,1249.9,1249.6,2.99111182]
[1672981332221,2.5,1249.8,1249.6,2.99111182]
[1672981332953,10.496,1249.8,1249.6,1.19641867]
[1672981333793,10.496,1249.8,1249.6,2.99111182]
[1672981334005,10.496,1249.8,1249.6,1.19641867]
[1672981334321,10.496,1249.8,1249.6,2.99111182]
[1672981335061,10.496,1249.8,1249.6,1.19641867]
[1672981335372,13.7038,1249.8,1249.5,6.19891182]
[1672981335793,13.7038,1249.8,1249.6,1.19641867]
[1672981336006,13.7038,1249.8,1249.6,3.69641867]
[1672981338312,10.496,1249.8,1249.6,3.69641867]
[1672981338937,10.496,1249.8,1249.6,1.19641867]
[1672981339252,10.496,1249.8,1249.5,5.49111182]
[1672981341568,3.2078,1249.7,1249.5,3.69641867]
[1672981341883,2.5,1249.6,1249.5,1.19641867]
[1672981342937,2.5,1249.6,1249.5,2.99111182]
[1672981343141,2.5,1249.6,1249.5,5.49111182]
[1672981343358,2.5,1249.6,1249.5,1.19641867]
[1672981344088,2.5,1249.6,1249.4,6.19891182]
[1672981344510,2.5,1249.6,1249.5,1.19641867]
[1672981344823,11.2038,1249.7,1249.5,3.69641867]
[1672981345658,11.2038,1249.7,1249.5,5.49111182]
[1672981345873,7.996,1249.7,1249.5,5.49111182]
[1672981346192,7.996,1249.7,1249.6,1.19641867]
[1672981348495,7.996,1249.7,1249.6,2.99111182]
[1672981349444,7.996,1249.7,1249.6,1.79469315]
[1672981350183,7.996,1249.7,1249.6,5.00249315]
[1672981350707,7.996,1249.7,1249.6,1.79469315]
[1672981350917,7.996,1249.7,1249.6,5.00249315]
[1672981351234,7.996,1249.7,1249.6,7.40033762]
[1672981351760,14.79418302,1249.9,1249.6,7.02403193]
[1672981352071,14.79418302,1249.9,1249.7,5.49833082]
[1672981352388,14.79418302,1249.9,1249.8,2.5]
[1672981352598,11.58638302,1249.9,1249.8,2.5]
[1672981353449,11.58638302,1249.9,1249.7,5.49833082]
[1672981353871,7.996,1249.9,1249.8,1.19933233]
[1672981354073,7.996,1249.9,1249.8,3.69933233]
[1672981355123,7.996,1249.9,1249.8,1.19933233]
[1672981355329,7.996,1249.9,1249.7,5.49833082]
[1672981356185,7.996,1249.9,1249.8,1.19933233]
[1672981356387,7.996,1249.9,1249.8,3.69933233]
[1672981357440,11.58638302,1249.9,1249.8,2.5]
[1672981358285,7.996,1249.9,1249.8,3.69933233]
[1672981359330,7.996,1249.9,1249.8,2.5]
[1672981359541,7.996,1249.9,1249.7,5.49833082]
[1672981362273,7.996,1249.9,1249.7,2.99833082]
[1672981362594,2.5,1249.8,1249.7,1.19933233]
[1672981373947,11.58638302,1249.9,1249.7,1.19933233]
[1672981374145,7.996,1249.9,1249.8,1.19933233]
[1672981374360,7.996,1249.9,1249.8,3.69933233]
[1672981375098,7.996,1249.9,1249.8,1.19933233]
[1672981376059,7.996,1249.9,1249.7,6.20613082]
[1672981376584,2.5,1249.8,1249.7,6.19891078]
[1672981376889,2.5,1249.8,1249.7,4.99957845]
[1672981377944,2.5,1249.8,1249.7,2.99074122]
[1672981378370,2.5,1249.8,1249.7,1.19896277]
[1672981388040,10.496,1249.8,1249.7,1.19896277]
[1672981388252,14.08638302,1249.8,1249.7,1.19896277]
[1672981388463,13.7038,1249.8,1249.7,1.19896277]
[1672981388666,17.29418302,1249.8,1249.7,1.19896277]
[1672981390462,14.08638302,1249.8,1249.7,1.19896277]
[1672981393824,10.496,1249.8,1249.7,1.19896277]
[1672981394559,14.79418302,1249.9,1249.7,1.19896277]
[1672981395617,11.58638302,1249.9,1249.7,1.19896277]
[1672981396036,11.58638302,1249.9,1249.7,3.69896277]
[1672981400770,11.58638302,1249.9,1249.7,1.19896277]
[1672981400980,2.5,1249.8,1249.7,1.19896277]
[1672981408748,5.7078,1249.8,1249.7,1.19896277]
[1672981408967,9.29818302,1249.8,1249.7,1.19896277]
[1672981409177,17.29418302,1249.8,1249.7,1.19896277]
[1672981412540,14.08638302,1249.8,1249.7,1.19896277]
[1672981414229,10.496,1249.8,1249.7,1.19896277]
[1672981416223,7.996,1249.8,1249.7,1.19896277]
[1672981416435,11.58638302,1249.9,1249.6,5.60564447]
[1672981416637,11.58638302,1249.9,1249.8,1.19971417]
[1672981422529,7.996,1249.9,1249.8,1.19971417]
[1672981422740,6.79818302,1250.0,1249.8,3.2078]
[1672981422741,3.59038302,1250.0,1249.8,3.2078]
[1672981423054,11.58638302,1250.1,1249.9,3.69907352]
[1672981425050,7.996,1250.1,1249.9,3.69907352]
[1672981426108,7.996,1250.1,1249.9,6.90687352]
[1672981427039,11.58638302,1250.1,1249.9,6.90687352]
[1672981427255,7.996,1250.1,1249.9,6.90687352]
[1672981428301,7.996,1250.1,1249.9,3.69907352]
[1672981428719,7.996,1250.1,1249.9,2.5]
[1672981428930,11.58638302,1250.1,1249.9,2.5]
[1672981430723,7.996,1250.1,1249.9,2.5]
[1672981431356,11.58638302,1250.1,1249.9,2.5]
[1672981431567,7.996,1250.1,1249.9,3.69907352]
[1672981431782,7.996,1250.1,1249.9,2.5]
[1672981432405,7.996,1250.1,1249.9,3.69907352]
[1672981433038,7.996,1250.1,1249.9,2.5]
[1672981434618,11.58638302,1250.1,1249.9,2.5]
[1672981437663,7.996,1250.1,1249.9,2.5]
[1672981439341,7.996,1250.1,1249.9,3.69907352]
[1672981439550,7.996,1250.1,1249.9,2.5]
[1672981441125,2.5,1250.0,1249.9,3.69292595]
[1672981441971,2.5,1250.0,1249.9,2.49385243]
[1672981442705,7.996,1250.1,1249.9,2.49385243]
[1672981442910,25.16838302,1250.2,1249.9,3.69292595]
[1672981443122,3.59038302,1250.3,1250.0,4.40687352]
[1672981443327,10.98696321,1250.4,1250.0,1.19907352]
[1672981443533,6.09038302,1250.3,1250.0,1.19907352]
[1672981443744,2.5,1250.2,1250.0,4.40687352]
[1672981443961,2.5,1250.2,1250.1,2.5]
[1672981444173,10.496,1250.3,1250.1,2.5]
[1672981452692,14.08638302,1250.3,1250.1,2.5]
[1672981456896,18.98296321,1250.4,1250.1,2.5]
[1672981457109,2.5,1250.3,1250.1,2.5]
[1672981457312,6.09038302,1250.3,1250.1,2.5]
[1672981457943,6.09038302,1250.3,1250.0,4.40687352]
[1672981458157,3.2078,1250.2,1250.0,1.19907352]
[1672981458365,3.2078,1250.2,1249.9,5.47175713]
[1672981458366,3.2078,1250.2,1249.9,5.48943065]
[1672981458575,2.5,1250.1,1249.9,3.69292595]
[1672981458993,2.5,1250.1,1249.9,5.48943065]
[1672981460991,2.5,1250.1,1250.0,1.19907352]
[1672981461310,6.79818302,1250.2,1250.0,1.19907352]
[1672981462670,14.79418302,1250.2,1250.0,1.19907352]
[1672981462886,2.5,1250.1,1250.0,1.19907352]
[1672981463721,2.5,1250.1,1249.9,5.48943065]
[1672981464672,2.5,1250.1,1250.0,1.19907352]
[1672981464884,2.5,1250.1,1249.9,5.48943065]
[1672981465401,2.5,1250.1,1250.0,1.19907352]
[1672981466244,2.5,1250.1,1249.9,5.48943065]
[1672981468341,2.5,1250.1,1250.0,1.19907352]